[Event "FIDE WSTC-50-65 2022"]
[Site "Acqui Terme"]
[Date "2022.06.27"]
[Round "7.14"]
[White "Birnboim, Nathan"]
[Black "Chevelevitch, Evgueni"]
[Result "0-1"]
[ECO "E62"]
[WhiteElo "2383"]
[BlackElo "2369"]
[Annotator "TA"]
[PlyCount "72"]
[EventDate "2022.06.20"]
[EventType "team-tourn"]
[EventCountry "ITA"]
[SourceTitle "playchess.com"]
[Source "ChessBase"]
[SourceQuality "1"]
[TimeControl "40/5400+30:1800+30"]

{[%evp 15,72,31,25,29,41,10,43,47,54,54,68,61,60,66,72,72,76,76,91,86,89,92,102,104,93,43,37,0,4,-51,-52,-44,-46,-70,-68,-85,-69,-67,-77,-83,-35,-60,-47,-210,-200,-203,-193,-222,-202,-394,-380,-1100,-1096,-1080,-1064,-1202,-1006,-29989,-889]} 1. d4 {[%emt 0:01:00]} Nf6 {[%emt 0:01:00]} 2. c4 {[%emt 0:00:00]} g6 {[%emt 0:00:00]} 3. g3 {[%emt 0:01:00]} Bg7 {[%emt 0:00:00]} 4. Bg2 {[%emt 0:00:00]} O-O {[%emt 0:00:30]} 5. Nc3 {[%emt 0:00:00]} d6 {[%emt 0:00:00]} 6. Nf3 {[%emt 0:00:30]} Nc6 {[%emt 0:01:00]} 7. O-O {[%emt 0:00:30]} e5 {[%emt 0:00:30]} 8. d5 {[%emt 0:00:30]} Nb8 {[%emt 0:04:30] is cutting edge theory.} 9. Bg5 {[%emt 0:03:30] [#] E62: King's Indian: Fianchetto: 6...c6 and Panno Variation (6...Nc6) without ...a6.} a5 $146 {[%emt 0:00:30]} ({Predecessor:} 9... h6 10. Bd2 a5 11. e4 Na6 12. Ne1 Nd7 13. Nd3 Ndc5 14. Be3 b6 15. b3 f5 16. a3 Nxd3 17. Qxd3 f4 18. gxf4 exf4 19. Bd2 Nc5 20. Qc2 f3 21. Bh1 Qh4 22. Rfe1 Be5 {0-1 (22) Ubiennykh,E (2331)-Kavutskiy,K (2391) Chess.com INT 2020}) 10. a3 {[%emt 0:10:30]} Qe8 {[%emt 0:10:30]} 11. e4 {[%emt 0:15:30] White is slightly better.} a4 {[%emt 0:08:30]} 12. Nb5 {[%emt 0:06:30]} Na6 {[%emt 0:14:30][%cal Bb8a6,Ba6c5,Bc5a4,Ba4c3][%mdl 32]} 13. Bxf6 {[%emt 0:03:30]} ({Don't play} 13. Qxa4 Nxe4 14. Be3 Bd7 $15) 13... Bxf6 {[%emt 0:02:30]} 14. Qxa4 {[%emt 0:00:00]} Bd7 {[%emt 0:05:30]} 15. b4 {[%emt 0:06:00]} Bg7 {[%emt 0:01:30]} 16. Rad1 {[%emt 0:08:30]} Bh6 {[%emt 0:11:30]} 17. Rfe1 {[%emt 0:03:30]} Nc5 {[%emt 0:04:30]} 18. Qc2 {[%emt 0:00:30]} Bxb5 {[%emt 0:00:30]} 19. cxb5 {[%emt 0:00:30]} Na4 {[%emt 0:00:30]} 20. Qxc7 {[%emt 0:12:30]} (20. Bh3 $16) 20... Qb8 $14 {[%emt 0:00:00]} 21. Qxb8 {[%emt 0:02:30]} Rfxb8 {[%emt 0:00:00]} 22. Bh3 {[%emt 0:08:29]} (22. Rd3 $11) 22... Nc3 $15 {[%emt 0:01:30][%csl LRa3,LRb5,LRd1]} 23. Ra1 {[%emt 0:00:36]} Ra4 {[%emt 0:01:30]} 24. b6 {[%emt 0:11:54] Threatens to win with Bd7.} Rba8 {[%emt 0:00:30]} 25. Bd7 {[%emt 0:02:13]} Rxa3 {[%emt 0:00:30]} 26. Rxa3 {[%emt 0:00:04]} Rxa3 {[%emt 0:00:30]} 27. Kg2 {[%emt 0:00:28] [#]} Rb3 {[%emt 0:02:30]} ({Black should try} 27... Ra6 $1 $17 28. b5 Rxb6) 28. b5 $1 {[%emt 0:01:23]} Nxb5 {[%emt 0:01:30]} 29. Ra1 $2 {[%emt 0:00:13] [#] This move loses the game for White.} (29. Bxb5 $15 Rxb5 30. Ra1) 29... Nc3 $1 $19 {[%emt 0:00:30][%csl LRb6,LRe4]} 30. Ra8+ {[%emt 0:00:20]} Kg7 {[%emt 0:00:30]} 31. Rc8 {[%emt 0:00:24]} Nxe4 {[%emt 0:01:30] ...Rb2 is the strong threat.} 32. Rc7 $2 {[%emt 0:00:05]} (32. Rc4 Nf6 33. Rc7) 32... Rb2 {[%emt 0:05:30]} 33. Be6 $2 {[%emt 0:01:40]} (33. Ng1 Be3 34. Be6 Rxf2+ 35. Kh1) 33... Rxf2+ {[%emt 0:02:44]} 34. Kh1 {[%emt 0:00:21]} Rxf3 {[%emt 0:00:31]} 35. Rxb7 {[%emt 0:00:04]} Be3 {[%emt 0:00:44]} 36. Rb8 {[%emt 0:00:42]} Bxb6 {[%emt 0:00:15] Weighted Error Value: White=0.64/Black=0.13 (very precise)} (36... Rf1+ $142 37. Kg2 Rf2+ 38. Kg1 fxe6 39. g4 Ng5 40. Rb7+ Kh6 41. Rf7 Rxf7+ 42. Kg2 Rf2+ 43. Kg3 Rd2 44. h3 Bf4+ 45. Kh4 Nf3#) 0-1

[Event "FIDE WSTC-50-65 2022"]
[Site "Acqui Terme"]
[Date "2022.06.27"]
[Round "7.15"]
[White "Kiefer, Gerhard"]
[Black "Berkovich, Mark A"]
[Result "1-0"]
[ECO "C60"]
[WhiteElo "2224"]
[BlackElo "2337"]
[Annotator "TA"]
[PlyCount "105"]
[EventDate "2022.06.20"]
[EventType "team-tourn"]
[EventCountry "ITA"]
[SourceTitle "playchess.com"]
[Source "ChessBase"]
[SourceQuality "1"]
[TimeControl "40/5400+30:1800+30"]

{[%evp 14,105,25,18,9,23,26,0,19,14,23,30,44,8,4,-37,-35,-27,-14,-13,-6,-16,0,-10,14,42,6,0,0,0,0,0,55,54,55,45,52,0,0,0,0,0,0,0,27,0,0,0,0,0,0,0,32,0,159,222,216,206,202,192,186,177,335,309,457,447,527,475,29973,29974,29973,29974,29972,1526,29979,29980,29979,29977,29975,29976,29961,6199,29978,29979,29990,29991,29993,29994,29995,29996,29996,29997,29997,29998]} 1. e4 {[%emt 0:08:00]} e5 {[%emt 0:01:00]} 2. Nf3 {[%emt 0:00:30]} Nc6 {[%emt 0:00:30]} 3. Bb5 {[%emt 0:00:30]} g6 {[%emt 0:00:30]} 4. c3 {[%emt 0:06:30]} Bg7 {[%emt 0:01:30]} 5. O-O {[%emt 0:00:30]} a6 {[%emt 0:01:30]} 6. Ba4 {[%emt 0:01:30]} b5 {[%emt 0:02:30]} 7. Bb3 {[%emt 0:00:30]} Nge7 {[%emt 0:00:30]} 8. d4 {[%emt 0:00:30]} exd4 {[%emt 0:00:30] C60: Ruy Lopez: Unusual Black 3rd moves and 3...g6.} 9. cxd4 {[%emt 0:00:30]} O-O {[%emt 0:01:30]} 10. Nc3 {[%emt 0:02:30]} d6 {[%emt 0:00:30][%cal Bd7d6,Bd6d5][%mdl 32] The position is equal.} 11. Nd5 {[%emt 0:12:30]} h6 {[%emt 0:06:30]} 12. Nxe7+ {[%emt 0:10:30]} Nxe7 {[%emt 0:06:30] [#]} 13. h3 $146 {[%emt 0:00:00]} ({Predecessor:} 13. Be3 Kh7 14. Rc1 f5 15. e5 Bb7 16. Re1 a5 17. Qe2 f4 18. Bd2 Bxf3 19. Qxf3 dxe5 {½-½ (66) Dominguez Perez,L (2719)-Aronian,L (2786) Moscow 2009}) 13... c5 {[%emt 0:07:30]} 14. Be3 {[%emt 0:12:00]} c4 {[%emt 0:02:30]} 15. Bc2 {[%emt 0:00:00]} d5 {[%emt 0:00:30]} 16. Qd2 {[%emt 0:00:00]} Kh7 {[%emt 0:00:30]} 17. a4 {[%emt 0:00:30]} Be6 {[%emt 0:03:30]} 18. e5 {[%emt 0:02:30]} Rb8 {[%emt 0:05:30]} 19. axb5 {[%emt 0:00:30]} axb5 {[%emt 0:00:00]} 20. h4 {[%emt 0:03:30]} b4 {[%emt 0:13:00]} 21. h5 {[%emt 0:00:30]} b3 {[%emt 0:05:30]} 22. Bb1 {[%emt 0:01:30]} Qd7 {[%emt 0:02:30]} (22... Bf5 $1 $11) 23. Nh4 $14 {[%emt 0:02:30]} Ra8 {[%emt 0:02:30]} 24. Rxa8 {[%emt 0:00:30]} Rxa8 {[%emt 0:00:00]} 25. f4 {[%emt 0:01:30]} (25. Qe2 $14) 25... Nf5 $11 {[%emt 0:01:00]} 26. hxg6+ {[%emt 0:04:30]} fxg6 {[%emt 0:00:30]} 27. Nxg6 {[%emt 0:01:30]} Kxg6 {[%emt 0:01:30]} 28. g4 {[%emt 0:00:30][%mdl 64] Pin} Kf7 {[%emt 0:06:30]} 29. gxf5 {[%emt 0:00:30]} Bxf5 {[%emt 0:00:30]} 30. Bxf5 {[%emt 0:02:30]} Qxf5 {[%emt 0:00:00]} 31. Qg2 $36 {[%emt 0:00:30][%mdl 2048] Prevents Qh3. White fights for an advantage.} Rd8 {[%emt 0:07:00]} 32. Ra1 {[%emt 0:06:30] And now Ra7+ would win.} Rd7 {[%emt 0:01:30] Prevents Ra7.} 33. Kh2 {[%emt 0:08:54]} Qh5+ $2 {[%emt 0:11:36] [#] Black is now going downhill.} (33... Kg8 $11) 34. Qh3 $1 $16 {[%emt 0:01:45] Really sharp!} Qxh3+ {[%emt 0:00:57]} 35. Kxh3 $18 {[%emt 0:00:06][%mdl 4096] Endgame KRB-KRB} Kg6 {[%emt 0:01:25]} 36. Kg4 {[%emt 0:00:52] Threatens to win with f5+.} h5+ {[%emt 0:00:50] [#]} 37. Kf3 $1 {[%emt 0:00:06]} Rb7 $2 {[%emt 0:05:57]} (37... c3 {might work better.}) 38. Bd2 {[%emt 0:04:14]} Bf8 {[%emt 0:01:36]} (38... Rf7 {was called for.} 39. Rg1+ Kh7) 39. Ra6+ {[%emt 0:02:01]} Kf7 {[%emt 0:01:01]} 40. f5 {[%emt 0:00:00]} Bb4 {[%emt 0:00:00]} (40... Kg8 $18 41. f6 Rb8) 41. Bxb4 {[%emt 0:07:32]} Rxb4 {[%emt 0:01:08] KR-KR} 42. Ra7+ {[%emt 0:00:00]} Kf8 {[%emt 0:04:30]} 43. f6 {[%emt 0:10:00]} (43. e6 $142 Rb6 44. Rc7 Rb8 45. f6 c3 46. Rg7 Re8 47. e7+ Rxe7 48. fxe7+ Ke8 49. bxc3) 43... c3 {[%emt 0:11:39]} 44. e6 {[%emt 0:00:37]} Rb8 {[%emt 0:00:06]} 45. Rh7 {[%emt 0:00:41][%cal Rh7h8]} Kg8 {[%emt 0:00:19]} 46. Rg7+ {[%emt 0:01:16]} Kh8 {[%emt 0:00:09]} 47. bxc3 {[%emt 0:06:20] Intending e7 and mate.} Rb6 {[%emt 0:15:12]} 48. Re7 {[%emt 0:00:28] White mates.} b2 {[%emt 0:00:28]} 49. f7 {[%emt 0:01:29][%cal Rf7f8]} ({Weaker is} 49. Re8+ Kh7 50. f7 (50. Re7+ $2 Kg6 $19) 50... b1=Q $11) 49... Kg7 {[%emt 0:00:48]} 50. Re8 {[%emt 0:00:07]} b1=Q {[%emt 0:00:16]} 51. f8=Q+ {[%emt 0:00:37]} Kg6 {[%emt 0:00:09]} 52. Qf7+ {[%emt 0:00:38]} Kg5 {[%emt 0:00:05]} 53. Rg8+ {[%emt 0:00:07] Weighted Error Value: White=0.06 (flawless) /Black=0.64} 1-0

[Event "FIDE WSTC-50-65 2022"]
[Site "Acqui Terme"]
[Date "2022.06.27"]
[Round "7.16"]
[White "Maryasin, Boris"]
[Black "Kierzek, Matthias"]
[Result "1/2-1/2"]
[ECO "B15"]
[WhiteElo "2280"]
[BlackElo "2224"]
[Annotator "TA"]
[PlyCount "104"]
[EventDate "2022.06.20"]
[EventType "team-tourn"]
[EventCountry "ITA"]
[SourceTitle "playchess.com"]
[Source "ChessBase"]
[SourceQuality "1"]
[TimeControl "40/5400+30:1800+30"]

{[%evp 12,104,27,11,13,-18,0,0,0,0,0,0,0,0,0,-35,13,-17,18,-27,-1,-2,-2,-7,0,-6,0,-8,-7,-14,0,-28,-29,-48,0,0,0,0,0,-32,-41,-35,-36,-35,-21,-14,0,-24,-25,-25,-25,-58,0,0,0,0,0,0,0,-4,0,0,0,0,0,0,0,0,0,0,0,0,0,0,0,0,0,0,0,0,0,0,0,0,0,0,0,0,0,0,0,0,0,0,0]} 1. e4 {[%emt 0:01:00]} c6 {[%emt 0:01:00]} 2. Nc3 {[%emt 0:00:30]} d5 {[%emt 0:00:00]} 3. Nf3 {[%emt 0:00:00]} dxe4 {[%emt 0:00:00]} 4. Nxe4 {[%emt 0:00:00]} Nf6 {[%emt 0:00:30]} 5. Nxf6+ {[%emt 0:01:30]} exf6 {[%emt 0:00:30]} 6. d4 {[%emt 0:00:30]} Bd6 {[%emt 0:00:30]} 7. Be3 {[%emt 0:01:30]} (7. c3 {is more complex.} O-O 8. Bd3 Re8+ 9. Be3) 7... O-O {[%emt 0:01:30]} 8. Qd2 {[%emt 0:01:30]} Be6 {[%emt 0:07:30]} 9. Bd3 {[%emt 0:01:30]} Re8 {[%emt 0:01:30]} 10. O-O {[%emt 0:00:30]} Nd7 {[%emt 0:01:30]} 11. c4 {[%emt 0:02:30]} Nf8 {[%emt 0:02:30]} 12. Rfe1 {[%emt 0:09:30]} Qd7 {[%emt 0:16:30]} 13. Bf4 {[%emt 0:02:30]} Rad8 {[%emt 0:06:30]} (13... Bxf4 $15 14. Qxf4 Ng6) 14. h3 {[%emt 0:04:30]} Ng6 {[%emt 0:01:30]} 15. Bxg6 {[%emt 0:03:30]} hxg6 {[%emt 0:00:30]} 16. Bxd6 {[%emt 0:02:30]} Qxd6 {[%emt 0:00:30]} 17. b3 {[%emt 0:00:00]} Rd7 {[%emt 0:07:30]} 18. Rad1 {[%emt 0:03:00]} Red8 {[%emt 0:00:30]} 19. a4 {[%emt 0:01:30]} b6 {[%emt 0:11:30]} 20. Qe3 {[%emt 0:01:30]} a6 {[%emt 0:03:30]} 21. Rd2 {[%emt 0:01:30][%cal Oa4a5]} Qb4 {[%emt 0:03:30]} 22. Red1 {[%emt 0:03:30]} b5 {[%emt 0:10:30]} (22... Re7 $1 $15 23. d5 cxd5) 23. axb5 $11 {[%emt 0:02:30]} axb5 {[%emt 0:00:30]} 24. d5 $1 {[%emt 0:00:30]} cxd5 {[%emt 0:00:30]} 25. cxb5 {[%emt 0:02:30]} (25. c5 $5 {[%cal Rc5c6]}) 25... Qxb5 {[%emt 0:00:30]} 26. Nd4 {[%emt 0:00:30][%csl LRb5,LRe6]} Qb6 {[%emt 0:01:30]} 27. Rc2 {[%emt 0:01:30]} Rd6 {[%emt 0:01:30]} 28. Rdc1 {[%emt 0:00:30]} Bf5 {[%emt 0:01:05]} 29. Rc6 {[%emt 0:05:30]} Rxc6 {[%emt 0:00:39]} 30. Rxc6 {[%emt 0:00:00]} Qa5 {[%emt 0:02:51]} 31. Rc1 {[%emt 0:08:00] [#] aiming for Nc6.} Qa8 {[%emt 0:03:49]} ({Black should play} 31... Qa3 $15) 32. b4 {[%emt 0:04:30] The position is equal.} Re8 {[%emt 0:00:37]} 33. Qb3 {[%emt 0:02:30]} Rc8 {[%emt 0:01:41]} 34. Rxc8+ {[%emt 0:01:30]} Qxc8 {[%emt 0:01:16][%mdl 4096] Endgame KQB-KQN} 35. Qb2 {[%emt 0:00:30] Inhibits Qc1+.} Qb7 {[%emt 0:04:21]} 36. Qc3 {[%emt 0:02:30]} Qb6 {[%emt 0:02:58]} 37. b5 {[%emt 0:14:07]} Bd7 {[%emt 0:00:27]} 38. Qb4 {[%emt 0:00:17]} Kh7 {[%emt 0:01:31]} 39. Kh2 {[%emt 0:01:45]} f5 {[%emt 0:01:16]} 40. g3 {[%emt 0:00:00]} g5 {[%emt 0:00:00]} (40... Bxb5 $2 41. Kg1 $16) 41. Kg2 {[%emt 0:03:21]} g4 {[%emt 0:17:06]} 42. h4 {[%emt 0:00:30]} f6 {[%emt 0:05:56]} 43. Kg1 {[%emt 0:02:30]} Kg6 {[%emt 0:00:18]} 44. Qc3 {[%emt 0:00:30]} Kf7 {[%emt 0:02:09]} ({Resist} 44... Bxb5 45. Qb4 $14) 45. h5 {[%emt 0:00:30]} Kg8 {[%emt 0:00:42]} (45... Bxb5 $2 46. Qb2 $16) 46. Qd2 {[%emt 0:05:30]} Qc5 {[%emt 0:01:40]} ({Don't take} 46... Bxb5 47. Qb2 $16) 47. Qf4 {[%emt 0:01:30]} Qb4 {[%emt 0:02:18]} 48. h6 {[%emt 0:08:30]} gxh6 {[%emt 0:02:09]} 49. Qc7 {[%emt 0:02:30] [#] Black must now prevent Qd8+.} Qxd4 {[%emt 0:00:17]} 50. Qd8+ {[%emt 0:00:30]} Kg7 {[%emt 0:00:18]} 51. Qxd7+ {[%emt 0:00:30]} Kg6 {[%emt 0:00:41]} 52. Qe8+ {[%emt 0:01:30]} Kg7 {[%emt 0:00:31] Weighted Error Value: White=0.07 (flawless) /Black=0.07 (flawless)} 1/2-1/2

[Event "FIDE WSTC-50-65 2022"]
[Site "Acqui Terme"]
[Date "2022.06.28"]
[Round "8.1"]
[White "Horvath, Jozsef"]
[Black "Kaidanov, Gregory"]
[Result "1-0"]
[ECO "E07"]
[WhiteElo "2429"]
[BlackElo "2556"]
[Annotator "TA"]
[PlyCount "131"]
[EventDate "2022.06.20"]
[EventType "team-tourn"]
[EventCountry "ITA"]
[SourceTitle "playchess.com"]
[Source "ChessBase"]
[SourceQuality "1"]
[TimeControl "40/5400+30:1800+30"]

{[%evp 18,131,13,14,32,33,31,24,30,34,22,5,33,11,74,55,68,67,68,50,108,110,170,156,159,167,164,170,173,146,135,135,139,142,201,143,134,137,142,126,157,145,159,135,170,166,170,131,132,146,158,161,161,129,210,208,208,205,207,207,236,208,209,161,212,210,212,206,304,280,364,331,331,326,373,355,348,387,387,387,386,385,376,368,295,265,29965,29964,29962,29960,4935,1722,6082,5918,5402,575,4549,2677,7910,6195,29964,29967,29962,29969,29968,29962,29977,29978,29976,29978,29976,29977,29982,29983,29984,29983]} 1. d4 {[%emt 0:01:00]} d5 {[%emt 0:01:00]} 2. c4 {[%emt 0:00:00]} e6 {[%emt 0:00:00]} 3. Nf3 {[%emt 0:00:00]} Nf6 {[%emt 0:00:00]} 4. e3 {[%emt 0:00:30]} c6 {[%emt 0:00:30]} 5. b3 {[%emt 0:00:30]} Nbd7 {[%emt 0:00:30]} 6. Bb2 {[%emt 0:00:30]} b6 {[%emt 0:06:30]} 7. Nbd2 {[%emt 0:00:30]} Bb7 {[%emt 0:00:00]} 8. g3 {[%emt 0:01:30] [#]} Be7 $146 {[%emt 0:01:00]} ({Predecessor:} 8... c5 9. Bg2 dxc4 10. bxc4 cxd4 11. exd4 Bb4 12. O-O O-O 13. a3 Bxd2 14. Qxd2 Rc8 {1-0 (38) Votava,J (2538)-Trichkov,V (2319) Czech Republic 2012}) 9. Bg2 {[%emt 0:02:30]} O-O {[%emt 0:00:30]} 10. O-O {[%emt 0:00:30]} c5 {[%emt 0:01:30] E07: Closed Catalan: Main Line (5 Nf3 0-0 6 0-0 Nbd7).} 11. Qe2 {[%emt 0:07:30]} Rc8 {[%emt 0:04:30]} 12. Rac1 {[%emt 0:07:30]} Rc7 {[%emt 0:02:30] White has an edge.} 13. cxd5 {[%emt 0:09:30]} Bxd5 {[%emt 0:07:30]} 14. dxc5 {[%emt 0:05:30]} Nxc5 {[%emt 0:02:30]} 15. Nd4 {[%emt 0:02:30]} Rd7 {[%emt 0:09:30]} (15... Bxg2 $11 {remains equal.} 16. Kxg2 e5) 16. Bxd5 $16 {[%emt 0:06:30]} Rxd5 {[%emt 0:00:30]} 17. N2f3 {[%emt 0:01:30][%cal Bd2f3,Bf3d4,Bd4b3][%mdl 32]} Qd7 {[%emt 0:07:30]} 18. b4 $1 {[%emt 0:15:30][%cal Bb3b4,Bb4c5][%mdl 32]} Nce4 {[%emt 0:08:30]} (18... Na4 $14) 19. Nc6 {[%emt 0:02:30]} Qb7 {[%emt 0:00:30]} (19... Re8 $16) 20. Nfd4 $1 $18 {[%emt 0:03:30] Strongly threatening f3.} e5 {[%emt 0:04:30] [#]} 21. Nb3 {[%emt 0:09:30]} Bc5 {[%emt 0:06:30]} 22. f3 {[%emt 0:08:11]} Ng5 {[%emt 0:00:30]} 23. bxc5 {[%emt 0:00:29]} Qxc6 {[%emt 0:00:30]} 24. e4 {[%emt 0:00:14]} Rdd8 {[%emt 0:02:30]} 25. Bxe5 {[%emt 0:02:43] Threatens to win with Nd4.} Rfe8 {[%emt 0:05:30]} (25... Ne6 $16 {might work better.} 26. cxb6 Qxb6+ 27. Kg2 h6) 26. Bd4 {[%emt 0:00:10] cxb6 is the strong threat.} Ne6 {[%emt 0:07:30]} 27. Be3 {[%emt 0:00:44] aiming for cxb6.} bxc5 {[%emt 0:01:30]} 28. Nxc5 {[%emt 0:00:18]} Nxc5 {[%emt 0:00:00]} 29. Rxc5 {[%emt 0:00:15]} Qa4 {[%emt 0:00:00]} 30. Rfc1 {[%emt 0:02:09]} h6 {[%emt 0:01:30]} 31. Rc7 {[%emt 0:02:00]} a5 {[%emt 0:00:30]} 32. Qc4 {[%emt 0:02:01]} Qxc4 {[%emt 0:00:30]} 33. R7xc4 {[%emt 0:00:20]} Nd5 {[%emt 0:01:29]} 34. Bd4 {[%emt 0:03:33]} Nb4 {[%emt 0:00:43]} 35. Bb6 {[%emt 0:03:03]} Rd3 {[%emt 0:05:52]} (35... Ra8 $16 36. a3 Nd3) 36. Bxa5 {[%emt 0:00:43]} Nxa2 {[%emt 0:00:07] [#]} 37. R1c2 {[%emt 0:00:54]} Ra3 {[%emt 0:00:30]} 38. Bd2 {[%emt 0:00:34]} Rd8 {[%emt 0:01:30]} 39. Rc8 {[%emt 0:01:22]} Rxc8 {[%emt 0:00:18]} 40. Rxc8+ {[%emt 0:00:00][%mdl 4096] Endgame KRB-KRN} Kh7 {[%emt 0:00:00]} 41. Kf2 {[%emt 0:10:17]} Ra4 {[%emt 0:08:01]} 42. Ke2 {[%emt 0:02:30]} h5 {[%emt 0:00:30]} (42... f6 $142 43. h4 Ra7) 43. Rc5 {[%emt 0:03:31]} g6 {[%emt 0:01:30]} 44. Ra5 {[%emt 0:10:06]} Nc1+ {[%emt 0:02:30]} 45. Ke3 {[%emt 0:00:09]} Rc4 {[%emt 0:00:30]} 46. Ra7 {[%emt 0:01:36]} Kg8 {[%emt 0:00:30]} 47. Ra3 {[%emt 0:00:47] Inhibits Nb3.} Rc2 {[%emt 0:04:30]} 48. Rc3 {[%emt 0:03:10]} Rxc3+ {[%emt 0:01:30]} 49. Bxc3 {[%emt 0:00:33] KB-KN} Nb3 {[%emt 0:00:30]} 50. Bb4 {[%emt 0:00:33] Against Nc5} f6 {[%emt 0:00:30]} 51. Kd3 {[%emt 0:00:12] Kc4 would kill now.} g5 $2 {[%emt 0:00:30]} (51... h4 $18 52. gxh4 Nc1+ 53. Kd2 Nb3+ 54. Kc3 Nc1) 52. Kc3 {[%emt 0:01:01]} Nc1 {[%emt 0:00:00]} 53. Bc5 {[%emt 0:00:27]} h4 {[%emt 0:01:00]} 54. gxh4 {[%emt 0:00:41]} (54. Kc2 $142 Ne2 55. Bf2) 54... Ne2+ {[%emt 0:00:30]} 55. Kd2 {[%emt 0:00:10]} Nf4 {[%emt 0:00:30]} 56. Bf2 {[%emt 0:01:45]} (56. Be3 $142 {White threatens Bxf4 and mate.} Ne6 57. hxg5 fxg5 58. Kd3) 56... Kf7 {[%emt 0:00:30]} 57. hxg5 {[%emt 0:00:38]} fxg5 {[%emt 0:00:00]} 58. h4 {[%emt 0:00:09]} gxh4 {[%emt 0:01:00]} 59. Bxh4 {[%emt 0:00:03] White mates.} Ke6 {[%emt 0:00:30]} 60. Bg5 {[%emt 0:00:27]} Nh5 {[%emt 0:00:30]} 61. Ke3 {[%emt 0:00:40]} Ng3 {[%emt 0:00:30]} 62. Bh4 {[%emt 0:00:25]} Nh5 {[%emt 0:00:30]} 63. f4 {[%emt 0:00:21][%cal Bf3f4,Bf4f5][%mdl 32]} Ng7 {[%emt 0:00:30]} 64. Kd4 {[%emt 0:00:11]} Ne8 {[%emt 0:00:30]} 65. f5+ {[%emt 0:00:12]} Kf7 {[%emt 0:00:30]} 66. e5 {[%emt 0:00:36] Weighted Error Value: White=0.23 (precise) /Black=0.40} 1-0